lending/lending_fUSD_20250121
["ID","MTS","AMOUNT","RATE_DAILY","PERIOD"]
[349836340,1737456642434,-1614.34,0.00019178,2]
[349836341,1737456642443,-3458.97,0.00019178,2]
[349836342,1737456642453,-500.0,0.00019178,2]
[349836343,1737456642462,-500.9878209,0.00019178,2]
[349836344,1737456642471,-500.0,0.00019178,2]
[349836345,1737456642481,-697.16,0.00019178,2]
[349836346,1737456642491,-500.0,0.00019178,2]
[349836347,1737456642500,-500.0,0.00019178,2]
[349836348,1737456642510,-500.0,0.00019178,2]
[349836349,1737456642519,-500.0,0.00019178,2]
[349836350,1737456642528,-500.0,0.00019178,2]
[349836351,1737456642538,-500.0,0.00019178,2]
[349836352,1737456642547,-500.0,0.00019178,2]
[349836353,1737456642556,-500.0,0.00019178,2]
[349836355,1737456642565,-500.0,0.00019178,2]
[349836357,1737456642575,-1000.0,0.00019178,2]
[349836358,1737456642584,-955.88,0.00019178,2]
[349836361,1737456642596,-1585.09,0.00019178,2]
[349836364,1737456642607,-500.0,0.00019178,2]
[349836365,1737456642616,-500.0,0.00019178,2]
[349836366,1737456642625,-1188.71,0.00019178,2]
[349836367,1737456642635,-500.0,0.00019178,2]
[349836369,1737456642644,-508.56917387,0.00019178,2]
[349836371,1737456642653,-500.0,0.00019178,2]
[349836373,1737456642662,-1046.8,0.00019178,2]
[349836374,1737456642671,-500.0,0.00019178,2]
[349836375,1737456642680,-503.50955423,0.00019178,2]
[349836376,1737456642689,-500.0,0.00019178,2]
[349836377,1737456642699,-500.0,0.00019178,2]
[349836378,1737456642709,-500.0,0.00019178,2]
[349836379,1737456642719,-1825.87,0.00019178,2]
[349836380,1737456642728,-209.41973395,0.00019178,2]
[349836381,1737456642737,-500.0,0.00019178,2]
[349836382,1737456642746,-500.0,0.00019178,2]
[349836383,1737456642755,-500.0,0.00019178,2]
[349836384,1737456642764,-603.79473304,0.00019178,2]
[349836385,1737456642773,-1306.3,0.00019178,2]
[349836386,1737456642782,-505.88760034,0.00019178,2]
[349836387,1737456642791,-500.0,0.00019178,2]
[349836388,1737456642804,-1968.63,0.00019178,2]
[349836389,1737456642814,-500.0,0.00019178,2]
[349836390,1737456642823,-500.0,0.00019178,2]
[349836391,1737456642832,-500.0,0.00019178,2]
[349836392,1737456642842,-500.0,0.00019178,2]
[349836393,1737456642851,-500.0,0.00019178,2]
[349836394,1737456642861,-504.43037415,0.00019178,2]
[349836395,1737456642872,-500.0,0.00019178,2]
[349836396,1737456642882,-500.0,0.00019178,2]
[349836397,1737456642891,-501.16303508,0.00019178,2]
[349836398,1737456642900,-1145.68,0.00019178,2]
[349836399,1737456642909,-500.0,0.00019178,2]
[349836400,1737456642919,-500.0,0.00019178,2]
[349836401,1737456642928,-500.0,0.00019178,2]
[349836402,1737456642937,-580.01,0.00019178,2]
[349836403,1737456642946,-500.0,0.00019178,2]
[349836404,1737456642956,-500.0,0.00019178,2]
[349836405,1737456642965,-500.0,0.00019178,2]
[349836406,1737456642975,-500.0,0.00019178,2]
[349836407,1737456642985,-500.0,0.00019178,2]
[349836408,1737456642994,-500.0,0.00019178,2]
[349836409,1737456643003,-1522.5,0.00019178,2]
[349836410,1737456643013,-500.0,0.00019178,2]
[349836411,1737456643023,-504.1254782,0.00019178,2]
[349836412,1737456643032,-500.0,0.00019178,2]
[349836413,1737456643041,-1893.72,0.00019178,2]
[349836414,1737456643050,-500.0,0.00019178,2]
[349836415,1737456643060,-500.0,0.00019178,2]
[349836416,1737456643069,-500.0,0.00019178,2]
[349836417,1737456643078,-1281.69,0.00019178,2]
[349836418,1737456643089,-502.98787258,0.00019178,2]
[349836419,1737456643098,-519.58590685,0.00019178,2]
[349836420,1737456643107,-500.0,0.00019178,2]
[349836421,1737456643117,-500.0,0.00019178,2]
[349836422,1737456643127,-500.0,0.00019178,2]
[349836423,1737456643136,-500.0,0.00019178,2]
[349836424,1737456643146,-500.0,0.00019178,2]
[349836425,1737456643155,-1303.45,0.00019178,2]
[349836426,1737456643164,-1619.85,0.00019178,2]
[349836427,1737456643173,-500.0,0.00019178,2]
[349836428,1737456643183,-572.94454462,0.00019178,2]
[349836429,1737456643192,-500.0,0.00019178,2]
[349836430,1737456643201,-2189.92,0.00019178,2]
[349836431,1737456643211,-500.0,0.00019178,2]
[349836432,1737456643220,-500.0,0.00019178,2]
[349836433,1737456643230,-500.0,0.00019178,2]
[349836434,1737456643239,-500.0,0.00019178,2]
[349836435,1737456643248,-500.0,0.00019178,2]
[349836437,1737456643258,-500.0,0.00019178,2]
[349836439,1737456643267,-500.0,0.00019178,2]
[349836441,1737456643277,-500.0,0.00019178,2]
[349836443,1737456643286,-1788.47,0.00019178,2]
[349836445,1737456643296,-500.0,0.00019178,2]
[349836448,1737456643306,-500.0,0.00019178,2]
[349836451,1737456643316,-500.0,0.00019178,2]
[349836453,1737456643325,-500.0,0.00019178,2]
[349836454,1737456643335,-1090.98,0.00019178,2]
[349836455,1737456643347,-513.85759688,0.00019178,2]
[349836456,1737456643357,-505.24334072,0.00019178,2]
[349836457,1737456643367,-500.0,0.00019178,2]
[349836458,1737456643377,-500.0,0.00019178,2]
[349836459,1737456643387,-386.47540251,0.00019178,2]
[349836460,1737456643397,-962.97,0.00019178,2]
[349836461,1737456643407,-500.0,0.00019178,2]
[349836462,1737456643417,-501.04287816,0.00019178,2]
[349836463,1737456643427,-500.0,0.00019178,2]
[349836464,1737456643436,-500.0,0.00019178,2]
[349836465,1737456643446,-714.16,0.00019178,2]
[349836466,1737456643455,-501.40866094,0.00019178,2]
[349836467,1737456643464,-500.0,0.00019178,2]
[349836468,1737456643474,-500.0,0.00019178,2]
[349836469,1737456643484,-500.0,0.00019178,2]
[349836470,1737456643493,-500.0,0.00019178,2]
[349836471,1737456643503,-888.3,0.00019178,2]
[349836472,1737456643513,-500.0,0.00019178,2]
[349836473,1737456643523,-500.0,0.00019178,2]
[349836474,1737456643533,-500.0,0.00019178,2]
[349836475,1737456643542,-462.91635604,0.00019178,2]
[349836476,1737456643551,-2770.96,0.00019178,2]
[349836477,1737456643561,-500.0,0.00019178,2]
[349836478,1737456643571,-500.0,0.00019178,2]
[349836479,1737456643580,-500.0,0.00019178,2]
[349836480,1737456643590,-500.0,0.00019178,2]
[349836481,1737456643741,-502.03393266,0.00019178,2]
[349836482,1737456643751,-1857.72,0.00019178,2]
[349836483,1737456643761,-500.0,0.00019178,2]
[349836484,1737456643770,-500.0,0.00019178,2]
[349836485,1737456643779,-500.0,0.00019178,2]
[349836486,1737456643788,-506.07791227,0.00019178,2]
[349836487,1737456643797,-500.0,0.00019178,2]
[349836488,1737456643807,-500.0,0.00019178,2]
[349836489,1737456643818,-1006.83,0.00019178,2]
[349836490,1737456643827,-504.38576865,0.00019178,2]
[349836491,1737456643837,-500.0,0.00019178,2]
[349836492,1737456643847,-500.0,0.00019178,2]
[349836493,1737456643857,-500.0,0.00019178,2]
[349836494,1737456643866,-500.0,0.00019178,2]
[349836495,1737456643876,-501.7012609,0.00019178,2]
[349836496,1737456643886,-500.0,0.00019178,2]
[349836497,1737456643895,-500.0,0.00019178,2]
[349836498,1737456643903,-336.9545188,0.00019178,2]
[349836499,1737456643913,-500.0,0.00019178,2]
[349836500,1737456643922,-500.0,0.00019178,2]
[349836501,1737456643931,-505.19454437,0.00019178,2]
[349836502,1737456643940,-500.62551052,0.00019178,2]
[349836503,1737456643950,-500.0,0.00019178,2]
[349836504,1737456643959,-500.0,0.00019178,2]
[349836505,1737456643968,-500.0,0.00019178,2]
[349836506,1737456643978,-500.0,0.00019178,2]
[349836507,1737456643987,-982.32,0.00019178,2]
[349836508,1737456643997,-500.0,0.00019178,2]
[349836509,1737456644006,-500.80876833,0.00019178,2]
[349836510,1737456644016,-500.0,0.00019178,2]
[349836511,1737456644025,-500.0,0.00019178,2]
[349836512,1737456644034,-505.71237173,0.00019178,2]
[349836513,1737456644044,-339.15809145,0.00019178,2]
[349836514,1737456644053,-500.0,0.00019178,2]
[349836515,1737456644063,-500.0,0.00019178,2]
[349836516,1737456644072,-811.65,0.00019178,2]
[349836517,1737456644081,-500.0,0.00019178,2]
[349836518,1737456644090,-500.0,0.00019178,2]
[349836519,1737456644099,-2415.54,0.00019178,2]
[349836520,1737456644108,-500.0,0.00019178,2]
[349836521,1737456644118,-500.0,0.00019178,2]
[349836522,1737456644127,-500.0,0.00019178,2]
[349836523,1737456644136,-500.0,0.00019178,2]
[349836524,1737456644145,-924.4,0.00019178,2]
[349836525,1737456644155,-500.0,0.00019178,2]
[349836526,1737456644164,-500.0,0.00019178,2]
[349836527,1737456644173,-500.0,0.00019178,2]
[349836528,1737456644183,-500.0,0.00019178,2]
[349836529,1737456644192,-500.0,0.00019178,2]
[349836530,1737456644201,-500.0,0.00019178,2]
[349836531,1737456644210,-500.0,0.00019178,2]
[349836532,1737456644220,-500.0,0.00019178,2]
[349836533,1737456644229,-212.71857398,0.00019178,2]
[349836534,1737456644239,-500.0,0.00019178,2]
[349836535,1737456644247,-500.0,0.00019178,2]
[349836536,1737456644257,-500.0,0.00019178,2]
[349836537,1737456644266,-622.77,0.00019178,2]
[349836538,1737456644276,-500.0,0.00019178,2]
[349836539,1737456644285,-500.0,0.00019178,2]
[349836540,1737456644294,-502.75125527,0.00019178,2]
[349836541,1737456644303,-500.0,0.00019178,2]
[349836542,1737456644313,-500.0,0.00019178,2]
[349836543,1737456644322,-500.0,0.00019178,2]
[349836544,1737456644331,-500.0,0.00019178,2]
[349836545,1737456644341,-501.32899466,0.00019178,2]
[349836546,1737456644351,-1130.85,0.00019178,2]
[349836547,1737456644360,-506.66584519,0.00019178,2]
[349836548,1737456644370,-500.0,0.00019178,2]
[349836549,1737456644379,-500.0,0.00019178,2]
[349836550,1737456644389,-500.0,0.00019178,2]
[349836551,1737456644398,-2372.71,0.00019178,2]
[349836552,1737456644409,-506.47296881,0.00019178,2]
[349836553,1737456644418,-500.0,0.00019178,2]
[349836554,1737456644429,-500.0,0.00019178,2]
[349836555,1737456644438,-1374.63,0.00019178,2]
[349836556,1737456644447,-548.01,0.00019178,2]
[349836557,1737456644457,-500.0,0.00019178,2]
[349836558,1737456644466,-503.87915327,0.00019178,2]
[349836559,1737456644475,-500.0,0.00019178,2]
[349836560,1737456644484,-501.83043481,0.00019178,2]
[349836561,1737456644494,-500.0,0.00019178,2]
[349836562,1737456644503,-500.0,0.00019178,2]
[349836563,1737456644513,-500.0,0.00019178,2]
[349836564,1737456644522,-500.0,0.00019178,2]
[349836565,1737456644532,-580.67,0.00019178,2]
[349836566,1737456644541,-513.12350146,0.00019178,2]
[349836567,1737456644550,-500.0,0.00019178,2]
[349836568,1737456644559,-505.7063975,0.00019178,2]
[349836569,1737456644568,-500.0,0.00019178,2]
[349836570,1737456644578,-364.83690005,0.00019178,2]
[349836571,1737456644587,-500.0,0.00019178,2]
[349836572,1737456644599,-502.70688409,0.00019178,2]
[349836573,1737456644608,-500.0,0.00019178,2]
[349836574,1737456644618,-500.0,0.00019178,2]
[349836575,1737456644627,-500.0,0.00019178,2]
[349836576,1737456644636,-500.0,0.00019178,2]
[349836577,1737456644645,-510.73025092,0.00019178,2]
[349836578,1737456644655,-688.03,0.00019178,2]
[349836579,1737456644664,-548.81,0.00019178,2]
[349836580,1737456644673,-500.0,0.00019178,2]
[349836581,1737456644682,-500.0,0.00019178,2]
[349836582,1737456644692,-500.0,0.00019178,2]
[349836583,1737456644702,-500.0,0.00019178,2]
[349836584,1737456644712,-500.0,0.00019178,2]
[349836585,1737456644722,-500.0,0.00019178,2]
[349836586,1737456644732,-500.0,0.00019178,2]
[349836587,1737456644742,-500.0,0.00019178,2]
[349836588,1737456644751,-500.0,0.00019178,2]
[349836589,1737456644760,-500.0,0.00019178,2]
[349836590,1737456644769,-500.0,0.00019178,2]
[349836591,1737456644778,-500.79693013,0.00019178,2]
[349836592,1737456644787,-500.0,0.00019178,2]
[349836593,1737456644798,-500.0,0.00019178,2]
[349836594,1737456644809,-500.0,0.00019178,2]
[349836595,1737456644819,-1443.33,0.00019178,2]
[349836596,1737456644828,-503.70900581,0.00019178,2]
[349836597,1737456644837,-500.44660523,0.00019178,2]
[349836598,1737456644849,-585.08,0.00019178,2]
[349836599,1737456644859,-500.0,0.00019178,2]
[349836600,1737456644868,-500.0,0.00019178,2]
[349836601,1737456644880,-889.71,0.00019178,2]
[349836602,1737456644890,-500.0,0.00019178,2]
[349836603,1737456644900,-500.0,0.00019178,2]
[349836604,1737456644909,-500.0,0.00019178,2]
[349836605,1737456644919,-266.03386026,0.00019178,2]
[349836606,1737456644928,-885.33,0.00019178,2]
[349836607,1737456644938,-2151.02,0.00019178,2]
[349836608,1737456644952,-500.0,0.00019178,2]
[349836609,1737456644961,-500.0,0.00019178,2]
[349836610,1737456644971,-500.0,0.00019178,2]
[349836611,1737456644981,-500.0,0.00019178,2]
[349836612,1737456644992,-500.0,0.00019178,2]
[349836613,1737456645002,-500.0,0.00019178,2]
[349836614,1737456645011,-500.0,0.00019178,2]
[349836615,1737456645022,-260.59387282,0.00019178,2]
[349836616,1737456645032,-1004.25,0.00019178,2]
[349836617,1737456645041,-500.0,0.00019178,2]
[349836618,1737456645051,-500.0,0.00019178,2]
[349836619,1737456645060,-489.55412299,0.00019178,2]
[349836620,1737456645070,-500.0,0.00019178,2]
[349836621,1737456645079,-500.0,0.00019178,2]
[349836622,1737456645090,-500.0,0.00019178,2]
[349836623,1737456645100,-500.0,0.00019178,2]
[349836624,1737456645110,-500.0,0.00019178,2]
[349836625,1737456645120,-500.0,0.00019178,2]
[349836626,1737456645131,-890.01,0.00019178,2]
[349836627,1737456645141,-500.0,0.00019178,2]
[349836628,1737456645151,-500.0,0.00019178,2]
[349836629,1737456645160,-500.0,0.00019178,2]
[349836630,1737456645170,-500.0,0.00019178,2]
[349836631,1737456645180,-500.0,0.00019178,2]
[349836632,1737456645190,-500.0,0.00019178,2]
[349836633,1737456645199,-564.17600683,0.00019178,2]
[349836634,1737456645209,-501.83959057,0.00019178,2]
[349836635,1737456645219,-1575.44,0.00019178,2]
[349836636,1737456645229,-500.0,0.00019178,2]
[349836637,1737456645239,-186.86610228,0.00019178,2]
[349836638,1737456645249,-720.66,0.00019178,2]
[349836639,1737456645259,-720.66,0.00019178,2]
[349836640,1737456645269,-500.0,0.00019178,2]
[349836641,1737456645279,-720.66,0.00019178,2]
[349836642,1737456645288,-699.57,0.00019178,2]
[349836643,1737456645298,-500.0,0.00019178,2]
[349836644,1737456645307,-500.0,0.00019178,2]
[349836645,1737456645317,-1752.97,0.00019178,2]
[349836646,1737456645327,-500.0,0.00019178,2]
[349836647,1737456645337,-500.0,0.00019178,2]
[349836648,1737456645347,-500.0,0.00019178,2]
[349836649,1737456645357,-500.0,0.00019178,2]
[349836650,1737456645366,-527.86,0.00019178,2]
[349836651,1737456645376,-567.68994935,0.00019178,2]
[349836652,1737456645386,-500.0,0.00019178,2]
[349836653,1737456645395,-500.0,0.00019178,2]
[349836654,1737456645405,-500.0,0.00019178,2]
[349836655,1737456645414,-501.20246143,0.00019178,2]
[349836656,1737456645423,-1027.35,0.00019178,2]
[349836657,1737456645433,-500.0,0.00019178,2]
[349836658,1737456645442,-1742.71,0.00019178,2]
[349836659,1737456645452,-666.01,0.00019178,2]
[349836660,1737456645462,-503.94759471,0.00019178,2]
[349836661,1737456645471,-500.0,0.00019178,2]
[349836662,1737456645481,-303.4718648,0.00019178,2]
[349836663,1737456645490,-625.72,0.00019178,2]
[349836664,1737456645500,-500.0,0.00019178,2]
[349836666,1737456645510,-503.85159732,0.00019178,2]
[349836669,1737456645520,-500.0,0.00019178,2]
[349836671,1737456645531,-500.0,0.00019178,2]
[349836674,1737456645541,-500.0,0.00019178,2]
[349836675,1737456645551,-500.0,0.00019178,2]
[349836679,1737456645561,-914.89,0.00019178,2]
[349836681,1737456645570,-500.0,0.00019178,2]
[349836683,1737456645580,-510.81416729,0.00019178,2]
[349836684,1737456645592,-500.0,0.00019178,2]
[349836685,1737456645603,-503.99459822,0.00019178,2]
[349836686,1737456645612,-500.0,0.00019178,2]
[349836687,1737456645622,-500.43112935,0.00019178,2]
[349836688,1737456645631,-502.68868577,0.00019178,2]
[349836689,1737456645641,-502.49,0.00019178,2]
[349836690,1737456645652,-500.0,0.00019178,2]
[349836691,1737456645662,-664.61,0.00019178,2]
[349836692,1737456645672,-219.3239677,0.00019279,2]
[349836693,1737456645683,-465.88,0.00019281,2]
[349836694,1737456645694,-168.27944598,0.00019352,2]
[349836695,1737456645705,-946.50590484,0.00019352,2]
[349836696,1737456645716,-220.0,0.00019352,2]
[349836697,1737456645726,-150.0,0.00019408,2]
[349836698,1737456645737,-13866.70985038,0.00019416,2]
[349836699,1737456645747,-219.3239677,0.00019417,2]
[349836700,1737456645757,-1137.67,0.0001942,2]
[349836701,1737456645767,-178.16255007,0.00019442,2]
[349836702,1737456645777,-168.44062801,0.00019451,2]
[349836703,1737456645786,-500.0,0.00019451,2]
[349836704,1737456645796,-720.66,0.00019451,2]
[349836705,1737456645806,-288.88686,0.00019452,2]
[349836706,1737456645818,-500.0,0.00019452,2]
[349836707,1737456645827,-445.572942,0.00019452,2]
[349836708,1737456645837,-295.01119464,0.00019452,2]
[349836709,1737456645850,-500.0,0.00019452,2]
[349836710,1737456645860,-500.0,0.00019452,2]
[349836711,1737456645871,-526.9456674,0.00019452,2]
[349836712,1737456645881,-500.0,0.00019452,2]
[349836713,1737456645893,-500.0,0.00019452,2]
[349836714,1737456645902,-500.0,0.00019452,2]
[349836715,1737456645911,-500.0,0.00019452,2]
[349836716,1737456645921,-500.0,0.00019452,2]
[349836717,1737456645930,-500.0,0.00019452,2]
[349836718,1737456645942,-502.38769835,0.00019452,2]
[349836719,1737456645952,-500.0,0.00019452,2]
[349836720,1737456645962,-500.0,0.00019452,2]
[349836721,1737456645971,-500.0,0.00019452,2]
[349836722,1737456645981,-500.0,0.00019452,2]
[349836723,1737456645991,-490.4542005,0.00019452,2]
[349836724,1737456646001,-500.0,0.00019452,2]
[349836726,1737456646010,-500.0,0.00019452,2]
[349836728,1737456646019,-1729.56,0.00019452,2]
[349836729,1737456646028,-500.0,0.00019452,2]
[349836730,1737456646038,-500.0,0.00019452,2]
[349836731,1737456646048,-268.40282724,0.00019452,2]
[349836732,1737456646058,-500.0,0.00019452,2]
[349836733,1737456646068,-500.0,0.00019452,2]
[349836734,1737456646078,-508.48703462,0.00019452,2]
[349836735,1737456646087,-500.0,0.00019452,2]
[349836736,1737456646099,-500.0,0.00019452,2]
[349836737,1737456646109,-500.0,0.00019452,2]
[349836738,1737456646119,-500.0,0.00019452,2]
[349836739,1737456646128,-500.0,0.00019452,2]
[349836740,1737456646137,-500.0,0.00019452,2]
[349836741,1737456646147,-500.0,0.00019452,2]
[349836742,1737456646157,-500.0,0.00019452,2]
[349836743,1737456646166,-500.0,0.00019452,2]
[349836744,1737456646176,-500.0,0.00019452,2]
[349836745,1737456646186,-500.0,0.00019452,2]
[349836746,1737456646195,-500.0,0.00019452,2]
[349836747,1737456646205,-500.0,0.00019452,2]
[349836748,1737456646214,-500.0,0.00019452,2]
[349836749,1737456646224,-500.0,0.00019452,2]
[349836750,1737456646234,-500.0,0.00019452,2]
[349836751,1737456646244,-500.0,0.00019452,2]
[349836752,1737456646254,-161.12690394,0.00019452,2]
[349836753,1737456646264,-511.89689085,0.00019452,2]
[349836754,1737456646425,-500.0,0.00019452,2]
[349836755,1737456646435,-500.0,0.00019452,2]
[349836756,1737456646444,-500.0,0.00019452,2]
[349836757,1737456646454,-500.0,0.00019452,2]
[349836758,1737456646463,-500.0,0.00019452,2]
[349836759,1737456646473,-500.0,0.00019452,2]
[349836760,1737456646482,-500.0,0.00019452,2]
[349836761,1737456646491,-546.6052474,0.00019452,2]
[349836762,1737456646500,-500.0,0.00019452,2]
[349836763,1737456646509,-500.0,0.00019452,2]
[349836764,1737456646519,-500.0,0.00019452,2]
[349836765,1737456646528,-500.0,0.00019452,2]
[349836766,1737456646538,-500.0,0.00019452,2]
[349836767,1737456646547,-500.0,0.00019452,2]
[349836768,1737456646556,-500.0,0.00019452,2]
[349836769,1737456646565,-500.0,0.00019452,2]
[349836770,1737456646575,-500.0,0.00019452,2]
[349836771,1737456646584,-500.0,0.00019452,2]
[349836772,1737456646595,-500.0,0.00019452,2]
[349836773,1737456646604,-500.0,0.00019452,2]
[349836774,1737456646614,-500.0,0.00019452,2]
[349836775,1737456646623,-500.0,0.00019452,2]
[349836776,1737456646632,-500.0,0.00019452,2]
[349836777,1737456646642,-500.0,0.00019452,2]
[349836778,1737456646653,-500.0,0.00019452,2]
[349836779,1737456646663,-500.0,0.00019452,2]
[349836780,1737456646672,-500.0,0.00019452,2]
[349836781,1737456646682,-500.0,0.00019452,2]
[349836782,1737456646692,-500.0,0.00019452,2]
[349836783,1737456646701,-500.0,0.00019452,2]
[349836784,1737456646711,-500.0,0.00019452,2]
[349836785,1737456646720,-500.0,0.00019452,2]
[349836786,1737456646729,-683.71,0.00019452,2]
[349836787,1737456646739,-500.0,0.00019452,2]
[349836788,1737456646748,-500.0,0.00019452,2]
[349836789,1737456646757,-500.0,0.00019452,2]
[349836790,1737456646766,-500.0,0.00019452,2]
[349836791,1737456646775,-500.0,0.00019452,2]
[349836792,1737456646785,-500.0,0.00019452,2]
[349836793,1737456646795,-500.0,0.00019452,2]
[349836794,1737456646809,-500.0,0.00019452,2]
[349836795,1737456646819,-500.0,0.00019452,2]
[349836796,1737456646828,-500.0,0.00019452,2]
[349836797,1737456646837,-325.2570049,0.00019452,2]
[349836798,1737456647197,-65.06547902,0.00019452,2]
[349836799,1737456647208,-500.0,0.00019452,2]
[349836800,1737456647219,-500.0,0.00019452,2]
[349836801,1737456647231,-500.0,0.00019452,2]
[349836802,1737456647240,-544.4,0.00019452,2]
[349836803,1737456647249,-500.0,0.00019452,2]
[349836804,1737456647259,-500.0,0.00019452,2]
[349836805,1737456647268,-500.0,0.00019452,2]
[349836806,1737456647277,-500.0,0.00019452,2]
[349836807,1737456647287,-515.04958124,0.00019452,2]
[349836808,1737456647297,-554.41233393,0.00019452,2]
[349836809,1737456647306,-806.69,0.00019452,2]
[349836810,1737456647316,-499.86884597,0.00019452,2]
[349836811,1737456647325,-500.0,0.00019452,2]
[349836812,1737456647335,-500.0,0.00019452,2]
[349836813,1737456647345,-500.0,0.00019452,2]
[349836814,1737456647355,-500.0,0.00019452,2]
[349836815,1737456647364,-500.0,0.00019452,2]
[349836816,1737456647374,-500.0,0.00019452,2]
[349836817,1737456647384,-67.66875584,0.00019452,2]
[349836818,1737456647397,-432.33124416,0.00019452,2]
[349836819,1737456647406,-500.0,0.00019452,2]
[349836820,1737456647415,-500.0,0.00019452,2]
[349836821,1737456647424,-500.0,0.00019452,2]
[349836822,1737456647434,-500.0,0.00019452,2]
[349836823,1737456647444,-500.0,0.00019452,2]
[349836824,1737456647454,-500.0,0.00019452,2]
[349836825,1737456647463,-500.0,0.00019452,2]
[349836826,1737456647473,-500.0,0.00019452,2]
[349836827,1737456647482,-1002.52,0.00019452,2]
[349836828,1737456647492,-500.0,0.00019452,2]
[349836829,1737456647501,-957.69,0.00019452,2]
[349836830,1737456647510,-500.0,0.00019452,2]
[349836831,1737456647519,-500.0,0.00019452,2]
[349836832,1737456647529,-530.35871356,0.00019452,2]
[349836833,1737456647538,-500.0,0.00019452,2]
[349836834,1737456647548,-161.39004278,0.00019452,2]
[349836835,1737456647560,-338.60995722,0.00019452,2]
[349836836,1737456647569,-500.0,0.00019452,2]
[349836837,1737456647579,-500.0,0.00019452,2]
[349836838,1737456647588,-500.0,0.00019452,2]
[349836839,1737456647598,-500.0,0.00019452,2]
[349836840,1737456647607,-500.0,0.00019452,2]
[349836841,1737456647617,-342.12751532,0.00019452,2]
[349836842,1737456647626,-500.0,0.00019452,2]
[349836843,1737456647636,-500.0,0.00019452,2]
[349836844,1737456647645,-500.0,0.00019452,2]
[349836845,1737456647655,-500.0,0.00019452,2]
[349836846,1737456647665,-500.0,0.00019452,2]
[349836847,1737456647674,-500.0,0.00019452,2]
[349836848,1737456647683,-500.0,0.00019452,2]
[349836849,1737456647693,-500.0,0.00019452,2]
[349836850,1737456647703,-500.0,0.00019452,2]
[349836851,1737456647712,-500.0,0.00019452,2]
[349836852,1737456647722,-500.0,0.00019452,2]
[349836853,1737456647731,-500.0,0.00019452,2]
[349836854,1737456647740,-500.0,0.00019452,2]
[349836855,1737456647750,-500.0,0.00019452,2]
[349836856,1737456647761,-500.0,0.00019452,2]
[349836857,1737456647771,-500.0,0.00019452,2]
[349836858,1737456647781,-500.0,0.00019452,2]
[349836859,1737456647790,-500.0,0.00019452,2]
[349836860,1737456647801,-529.92604311,0.00019452,2]
[349836861,1737456647811,-500.0,0.00019452,2]
[349836862,1737456647824,-500.0,0.00019452,2]
[349836863,1737456647833,-13.57148435,0.00019452,2]
[349836864,1737456647849,-486.42851565,0.00019452,2]
[349836865,1737456647859,-500.0,0.00019452,2]
[349836866,1737456647868,-398.32148435,0.00019452,2]
[349836867,1737456647880,-101.67851565,0.00019452,2]
[349836868,1737456647890,-500.0,0.00019452,2]
[349836869,1737456647899,-500.0,0.00019452,2]
[349836870,1737456647909,-500.0,0.00019452,2]
[349836871,1737456647919,-500.0,0.00019452,2]